fUSD/lending_fUSD_20250313
["ID","MTS","AMOUNT","RATE_DAILY","PERIOD"]
[356072368,1741879877238,-621.19,0.00028441,18]
[356072369,1741879877248,-1479.11490521,0.00028441,18]
[356072370,1741881013778,-725.68,0.00025329,2]
[356072371,1741881013800,-3915.098229,0.00026715,2]
[356072372,1741881013821,-254.22,0.00026849,2]
[356072373,1741881013846,-165.37,0.00027312,2]
[356072374,1741881013869,-173.26,0.00027362,2]
[356072375,1741881013893,-300.0,0.0002737,2]
[356072376,1741881013917,-4466.371771,0.00027371,2]
[356072377,1741881014411,-3215.558229,0.00027371,2]
[356072378,1741881014433,-200.0,0.0002739,2]
[356072379,1741881014455,-150.0,0.00027397,2]
[356072380,1741881014476,-150.0,0.00027409,2]
[356072381,1741881014499,-1000.0,0.00027409,2]
[356072382,1741881014521,-250.0,0.00027418,2]
[356072383,1741881014544,-159.32,0.00027476,30]
[356072384,1741881014566,-725.68,0.00027593,2]
[356072385,1741881014588,-201.89690782,0.000279,4]
[356072386,1741881014609,-495.171219,0.00028,30]
[356072387,1741881014632,-411.64633802,0.00028,2]
[356072388,1741881014652,-3040.72730616,0.00028,30]
[356072389,1741881015199,-2362.21269384,0.00028,30]
[356072390,1741881015222,-1500.0,0.000282,2]
[356072391,1741881015244,-807.8543,0.00028202,2]
[356072392,1741881015266,-166.66,0.00028229,2]
[356072393,1741881015289,-5163.27300616,0.0002829,2]
[356072394,1741881017159,-1121.22249384,0.0002829,2]
[356072395,1741881017182,-151.6906,0.0002829,2]
[356072396,1741881017206,-1233.3899,0.0002829,2]
[356072397,1741881017228,-2343.6572,0.00028298,2]
[356072398,1741881017250,-313.0516,0.00028298,2]
[356072399,1741881017273,-1478.61076972,0.00028308,2]
[356072400,1741881017296,-150.0,0.00028308,2]
[356072401,1741881017318,-3208.37743644,0.00028309,2]
[356072427,1741881031678,-4472.25,0.00028309,2]
[356072428,1741881031689,-3618.17903458,0.00028309,2]
[356072429,1741881031700,-2162.08206925,0.00028309,2]
[356072430,1741881031819,-707.07731665,0.00028309,2]
[356072431,1741881031831,-629.99914214,0.00028309,2]
[356072432,1741881031905,-606.31591717,0.00028309,2]
[356072433,1741881032021,-26617.94868377,0.00028309,2]
[356072434,1741881032033,-317.3041,0.00028309,3]
[356072435,1741881032044,-502.80281944,0.00028373,5]
[356072436,1741881032054,-500.0,0.00028373,5]
[356072437,1741881032064,-1065.739,0.00028389,19]
[356072438,1741881032074,-557.46945016,0.0002839,18]
[356072439,1741881032084,-500.0,0.0002839,18]
[356072440,1741881032093,-500.0,0.0002839,18]
[356072441,1741881032103,-500.0,0.0002839,2]
[356072442,1741881032113,-538.16573409,0.0002839,18]
[356072443,1741881032123,-500.0,0.0002839,18]
[356072444,1741881032134,-500.0,0.0002839,18]
[356072446,1741881032144,-500.0,0.0002839,18]
[356072448,1741881032153,-500.0,0.0002839,18]
[356072450,1741881032163,-500.0,0.0002839,18]
[356072452,1741881032173,-500.0,0.0002839,18]
[356072454,1741881032182,-500.0,0.0002839,18]
[356072455,1741881032192,-500.0,0.0002839,18]
[356072457,1741881032201,-500.0,0.0002839,18]
[356072459,1741881032210,-500.0,0.0002839,18]
[356072461,1741881032220,-233.03980057,0.0002839,18]
[356072462,1741881032230,-500.0,0.0002839,18]
[356072463,1741881032239,-500.0,0.0002839,18]
[356072464,1741881032249,-500.0,0.0002839,18]
[356072465,1741881032259,-500.0,0.0002839,18]
[356072466,1741881032269,-665.23,0.0002839,7]
[356072467,1741881032279,-500.0,0.0002839,18]
[356072468,1741881032288,-500.0,0.0002839,18]
[356072469,1741881032298,-500.0,0.0002839,18]
[356072470,1741881032307,-500.0,0.0002839,18]
[356072471,1741881032317,-37.08867661,0.0002839,18]
[356072472,1741881032329,-462.91132339,0.0002839,18]
[356072473,1741881032340,-500.0,0.0002839,18]
[356072474,1741881032350,-500.0,0.0002839,18]
[356072475,1741881032359,-500.0,0.0002839,18]
[356072476,1741881032369,-500.0,0.0002839,18]
[356072477,1741881032378,-234.25212501,0.0002839,18]
[356072493,1741881037465,-558.02787499,0.0002839,18]
[356072495,1741881037475,-500.0,0.0002839,18]
[356072496,1741881037486,-572.41,0.0002839,18]
[356072498,1741881037495,-500.0,0.0002839,18]
[356072501,1741881037505,-500.0,0.0002839,18]
[356072503,1741881037515,-500.0,0.0002839,18]
[356072505,1741881037525,-500.0,0.0002839,18]
[356072506,1741881037534,-128.15643239,0.0002839,18]
[356072509,1741881037566,-406.23356761,0.0002839,18]
[356072510,1741881037577,-300.0,0.0002839,18]
[356072512,1741881037587,-870.88,0.0002839,18]
[356072514,1741881037596,-500.0,0.0002839,18]
[356072515,1741881037606,-500.0,0.0002839,18]
[356072516,1741881037616,-500.0,0.0002839,18]
[356072517,1741881037626,-184.17356734,0.0002839,18]
[356072518,1741881037640,-315.82643266,0.0002839,18]
[356072519,1741881037650,-500.0,0.0002839,18]
[356072520,1741881037660,-500.0,0.0002839,18]
[356072521,1741881037671,-500.0,0.0002839,18]
[356072522,1741881037681,-143.80929959,0.0002839,18]
[356072523,1741881037694,-356.19070041,0.0002839,18]
[356072524,1741881037703,-352.89196171,0.0002839,18]
[356072525,1741881037716,-147.10803829,0.0002839,18]
[356072526,1741881037726,-500.0,0.0002839,18]
[356072527,1741881037735,-500.0,0.0002839,18]
[356072528,1741881037746,-500.0,0.0002839,18]
[356072529,1741881037756,-500.0,0.0002839,18]
[356072530,1741881037766,-500.0,0.0002839,18]
[356072531,1741881037775,-612.69196171,0.0002839,18]
[356072532,1741881037787,-533.67803829,0.0002839,18]
[356072533,1741881037797,-500.0,0.0002839,18]
[356072534,1741881037806,-500.0,0.0002839,18]
[356072535,1741881037816,-500.0,0.0002839,18]
[356072536,1741881037826,-500.0,0.0002839,18]
[356072537,1741881037836,-500.0,0.0002839,18]
[356072538,1741881037846,-500.0,0.0002839,18]
[356072539,1741881037856,-500.0,0.0002839,18]
[356072540,1741881037866,-552.51,0.0002839,18]
[356072541,1741881037876,-500.0,0.0002839,18]
[356072542,1741881037886,-500.0,0.0002839,18]
[356072543,1741881037900,-312.66260124,0.0002839,18]
[356072544,1741881037909,-713.78,0.0002839,18]
[356072545,1741881037919,-500.0,0.0002839,18]
[356072546,1741881037929,-682.03,0.0002839,18]
[356072547,1741881037939,-500.0,0.0002839,18]
[356072548,1741881037951,-500.0,0.0002839,18]
[356072549,1741881037962,-500.0,0.0002839,18]
[356072550,1741881037971,-500.0,0.0002839,18]
[356072551,1741881037981,-500.0,0.0002839,18]
[356072552,1741881037993,-500.0,0.0002839,18]
[356072554,1741881038003,-500.0,0.0002839,18]
[356072556,1741881038013,-637.03,0.0002839,18]
[356072557,1741881038023,-500.0,0.0002839,18]
[356072558,1741881038035,-500.0,0.0002839,18]
[356072559,1741881038045,-500.0,0.0002839,18]
[356072560,1741881038055,-500.0,0.0002839,18]
[356072561,1741881038064,-500.0,0.0002839,18]
[356072562,1741881038074,-500.0,0.0002839,18]
[356072563,1741881038084,-500.0,0.0002839,18]
[356072564,1741881038093,-500.0,0.0002839,18]
[356072565,1741881038103,-500.0,0.0002839,18]
[356072566,1741881038113,-500.0,0.0002839,18]
[356072567,1741881038123,-500.0,0.0002839,18]
[356072568,1741881038133,-500.0,0.0002839,18]
[356072569,1741881038147,-500.0,0.0002839,18]
[356072570,1741881038157,-269.7386747,0.0002839,18]
[356072571,1741881038166,-500.0,0.0002839,18]
[356072572,1741881038176,-500.0,0.0002839,18]
[356072573,1741881038186,-518.72,0.0002839,18]
[356072574,1741881038195,-500.0,0.0002839,18]
[356072575,1741881038205,-500.0,0.0002839,18]
[356072576,1741881038215,-500.0,0.0002839,18]
[356072577,1741881038224,-500.0,0.0002839,18]
[356072578,1741881038234,-15131.5949155,0.00028396,3]
[356072579,1741881038244,-15131.5949155,0.00028397,3]
[356072580,1741881038253,-151.51,0.00028398,2]
[356072581,1741881038263,-30263.1898311,0.00028398,3]
[356072582,1741881038272,-500.0,0.00028398,18]
[356072583,1741881038282,-15131.5949155,0.00028398,3]
[356072584,1741881038291,-15131.5949155,0.00028399,3]
[356072585,1741881038301,-500.0,0.00028399,18]
[356072586,1741881038311,-500.0,0.00028399,18]
[356072587,1741881038321,-500.0,0.00028399,18]
[356072588,1741881038330,-500.0,0.00028399,18]
[356072589,1741881038339,-500.0,0.00028399,18]
[356072590,1741881038350,-500.0,0.00028399,18]
[356072591,1741881038359,-500.0,0.00028399,18]
[356072592,1741881038368,-500.0,0.00028399,18]
[356072593,1741881038378,-500.0,0.00028399,18]
[356072594,1741881038390,-500.0,0.00028399,18]
[356072595,1741881038403,-500.0,0.00028399,18]
[356072596,1741881038412,-500.0,0.00028399,18]
[356072597,1741881038422,-500.0,0.00028399,18]
[356072598,1741881038431,-500.0,0.00028399,18]
[356072599,1741881038441,-500.0,0.00028399,18]
[356072600,1741881038450,-500.0,0.00028399,18]
[356072601,1741881038459,-665.23,0.00028399,7]
[356072602,1741881038469,-500.0,0.00028399,18]
[356072603,1741881038478,-500.0,0.00028399,18]
[356072604,1741881038488,-500.0,0.00028399,18]
[356072605,1741881038497,-500.0,0.00028399,18]
[356072606,1741881038507,-500.0,0.00028399,18]
[356072607,1741881038517,-500.0,0.00028399,18]
[356072608,1741881038526,-500.0,0.00028399,18]
[356072609,1741881038535,-500.0,0.00028399,18]
[356072610,1741881038545,-500.0,0.00028399,18]
[356072611,1741881038554,-792.28,0.00028399,18]
[356072612,1741881038564,-616.25351545,0.00028399,18]
[356072613,1741881038574,-572.41,0.00028399,18]
[356072614,1741881038583,-500.0,0.00028399,18]
[356072615,1741881038593,-500.0,0.00028399,18]
[356072616,1741881038602,-500.0,0.00028399,18]
[356072617,1741881038611,-500.0,0.00028399,18]
[356072618,1741881038621,-534.39,0.00028399,18]
[356072619,1741881038631,-300.0,0.00028399,18]
[356072620,1741881038643,-870.88,0.00028399,18]
[356072621,1741881038652,-599.16254373,0.00028399,18]
[356072622,1741881038661,-500.0,0.00028399,18]
[356072623,1741881038670,-500.0,0.00028399,18]
[356072624,1741881038679,-500.0,0.00028399,18]
[356072625,1741881038688,-500.0,0.00028399,18]
[356072626,1741881038698,-500.0,0.00028399,18]
[356072627,1741881038707,-500.0,0.00028399,18]
[356072628,1741881038716,-500.0,0.00028399,18]
[356072629,1741881038726,-489.92397098,0.00028399,18]
[356072630,1741881038960,-500.0,0.00028399,18]
[356072631,1741881038972,-500.0,0.00028399,18]
[356072632,1741881038983,-500.0,0.00028399,18]
[356072633,1741881038994,-500.0,0.00028399,18]
[356072634,1741881039003,-500.0,0.00028399,18]
[356072635,1741881039013,-1146.37,0.00028399,18]
[356072636,1741881039023,-500.0,0.00028399,18]
[356072637,1741881039034,-500.0,0.00028399,18]
[356072638,1741881039045,-500.0,0.00028399,18]
[356072639,1741881039055,-500.0,0.00028399,18]
[356072640,1741881039064,-500.0,0.00028399,18]
[356072641,1741881039074,-500.0,0.00028399,18]
[356072642,1741881039083,-500.0,0.00028399,18]
[356072643,1741881039093,-552.51,0.00028399,18]
[356072644,1741881039103,-500.0,0.00028399,18]
[356072645,1741881039113,-500.0,0.00028399,18]
[356072646,1741881039123,-713.78,0.00028399,18]
[356072647,1741881039132,-500.0,0.00028399,18]
[356072648,1741881039143,-682.03,0.00028399,18]
[356072649,1741881039152,-500.0,0.00028399,18]
[356072650,1741881039162,-500.0,0.00028399,18]
[356072651,1741881039172,-500.0,0.00028399,18]
[356072652,1741881039182,-500.0,0.00028399,18]
[356072653,1741881039191,-500.0,0.00028399,18]
[356072654,1741881039201,-500.0,0.00028399,18]
[356072655,1741881039210,-500.0,0.00028399,18]
[356072656,1741881039219,-637.03,0.00028399,18]
[356072657,1741881039229,-500.0,0.00028399,18]
[356072658,1741881039238,-500.0,0.00028399,18]
[356072659,1741881039248,-500.0,0.00028399,18]
[356072660,1741881039258,-500.0,0.00028399,18]
[356072661,1741881039268,-500.0,0.00028399,18]
[356072662,1741881039277,-500.0,0.00028399,18]
[356072663,1741881039287,-500.0,0.00028399,18]
[356072664,1741881039297,-500.0,0.00028399,18]
[356072665,1741881039306,-500.0,0.00028399,18]
[356072666,1741881039320,-500.0,0.00028399,18]
[356072667,1741881039330,-500.0,0.00028399,18]
[356072668,1741881039339,-519.30741784,0.00028399,18]
[356072669,1741881039350,-500.0,0.00028399,18]
[356072670,1741881039359,-500.0,0.00028399,18]
[356072671,1741881039369,-500.0,0.00028399,18]
[356072672,1741881039379,-518.72,0.00028399,18]
[356072673,1741881039388,-500.0,0.00028399,18]
[356072674,1741881039400,-500.0,0.00028399,18]
[356072676,1741881039409,-500.0,0.00028399,18]
[356072677,1741881039418,-500.0,0.00028399,18]
[356072678,1741881039428,-105921.164409,0.00028399,3]
[356072679,1741881039438,-105682.391249,0.00028399,3]
[356072680,1741881039450,-410.84586005,0.000284,2]
[356072681,1741881039460,-847.83,0.000284,15]
[356072682,1741881039470,-500.0,0.000284,18]
[356072683,1741881039480,-465.3,0.000284,18]
[356072684,1741881039489,-500.0,0.000284,18]
[356072685,1741881039499,-198.78639667,0.000284,2]
[356072686,1741881039508,-271.39,0.000284,18]
[356072687,1741881039518,-15097.4844642,0.00028401,3]
[356072688,1741881039528,-15131.5949155,0.00028401,3]
[356072689,1741881039537,-15097.4844642,0.00028401,3]
[356072691,1741881039548,-15131.5949155,0.00028401,3]
[356072693,1741881039557,-12693.72856884,0.00028402,3]
[356072696,1741881039570,-917.45758146,0.00028402,3]
[356072697,1741881039582,-1486.2983139,0.00028402,3]
[356072699,1741881039592,-5653.7803469,0.00028403,3]
[356072701,1741881039603,-9443.7041173,0.00028403,3]
[356072703,1741881039613,-4200.65877283,0.00028406,3]
[356072704,1741881039624,-468.40396298,0.00028406,3]
[356072706,1741881039636,-3733.93921047,0.00028406,3]
[356072708,1741881039651,-6728.59296922,0.00028406,3]
[356072710,1741881039663,-500.0,0.00028407,18]
[356072712,1741881039673,-500.0,0.00028407,18]
[356072714,1741881039683,-500.0,0.00028407,18]
[356072715,1741881039692,-500.0,0.00028407,18]
[356072716,1741881039703,-500.0,0.00028407,18]
[356072717,1741881039713,-500.0,0.00028407,18]
[356072718,1741881039723,-500.0,0.00028407,18]
[356072719,1741881039733,-504.86891563,0.00028407,18]
[356072720,1741881039742,-500.0,0.00028407,18]
[356072721,1741881039752,-500.0,0.00028407,18]
[356072722,1741881039762,-500.0,0.00028407,18]
[356072723,1741881039772,-500.0,0.00028407,18]
[356072724,1741881039788,-500.0,0.00028407,18]
[356072725,1741881039798,-10765.86221776,0.00028408,3]
[356072726,1741881039810,-2190.83573262,0.00028408,3]
[356072727,1741881039821,-822.49017547,0.00028408,3]
[356072728,1741881039833,-1352.40678965,0.00028408,3]
[356072729,1741881039843,-914.56464541,0.00028408,3]
[356072730,1741881039855,-785.03255407,0.00028408,3]
[356072731,1741881039867,-8595.71340036,0.00028408,3]
[356072732,1741881039879,-443.13092382,0.00028408,3]
[356072733,1741881039984,-422.23889055,0.00028408,3]
[356072734,1741881039998,-1092.27862809,0.00028408,3]
[356072735,1741881040013,-340.2616512,0.00028408,3]
[356072736,1741881040028,-2440.51128,0.00028408,3]
[356072737,1741881040041,-63.7524907,0.00028408,3]
[356072738,1741881040051,-500.0,0.00028408,18]
[356072739,1741881040061,-500.0,0.00028408,18]
[356072740,1741881040071,-500.0,0.00028408,18]
[356072741,1741881040081,-500.0,0.00028408,18]
[356072742,1741881040090,-500.0,0.00028408,18]
[356072743,1741881040100,-613.79639592,0.00028408,18]
[356072744,1741881040109,-500.0,0.00028408,18]
[356072745,1741881040119,-500.0,0.00028408,18]
[356072746,1741881040129,-546.90190261,0.00028408,18]
[356072747,1741881040138,-500.0,0.00028408,18]
[356072748,1741881040151,-500.0,0.00028408,18]
[356072749,1741881040160,-500.0,0.00028408,18]
[356072750,1741881040169,-500.0,0.00028408,18]
[356072751,1741881040179,-429.28526046,0.00028408,18]
[356072752,1741881040191,-70.71473954,0.00028408,18]
[356072753,1741881040200,-500.0,0.00028408,18]
[356072754,1741881040210,-500.0,0.00028408,18]
[356072755,1741881040219,-114.73030886,0.00028408,18]
[356072756,1741881040231,-385.26969114,0.00028408,18]
[356072757,1741881040241,-494.99368656,0.00028408,18]
[356072758,1741881040253,-9.00937978,0.00028408,18]
[356072759,1741881040262,-665.23,0.00028408,7]
[356072760,1741881040272,-43.78434976,0.00028408,18]
[356072762,1741881040283,-407.962555,0.00028408,18]
[356072763,1741881040294,-48.25309524,0.00028408,18]
[356072764,1741881040304,-500.0,0.00028408,18]
[356072765,1741881040313,-500.0,0.00028408,18]
[356072766,1741881040323,-500.0,0.00028408,18]
[356072767,1741881040333,-500.0,0.00028408,18]
[356072768,1741881040342,-500.0,0.00028408,18]
[356072769,1741881040352,-500.0,0.00028408,18]
[356072770,1741881040362,-500.0,0.00028408,18]
[356072772,1741881040371,-500.0,0.00028408,18]
[356072773,1741881040380,-500.0,0.00028408,18]
[356072774,1741881040390,-500.0,0.00028408,18]
[356072775,1741881040402,-792.28,0.00028408,18]
[356072776,1741881040412,-572.41,0.00028408,18]
[356072777,1741881040421,-456.56258461,0.00028408,18]
[356072778,1741881040430,-500.0,0.00028408,18]
[356072779,1741881040440,-500.0,0.00028408,18]
[356072780,1741881040449,-500.0,0.00028408,18]
[356072781,1741881040459,-534.39,0.00028408,18]
[356072782,1741881040468,-300.0,0.00028408,18]
[356072783,1741881040478,-870.88,0.00028408,18]
[356072784,1741881040488,-500.0,0.00028408,18]
[356072785,1741881040497,-500.0,0.00028408,18]
[356072786,1741881040507,-500.0,0.00028408,18]
[356072787,1741881040516,-500.0,0.00028408,18]
[356072788,1741881040526,-500.0,0.00028408,18]
[356072789,1741881040535,-500.0,0.00028408,18]
[356072790,1741881040546,-500.0,0.00028408,18]
[356072791,1741881040555,-500.0,0.00028408,18]
[356072792,1741881040565,-500.0,0.00028408,18]
[356072793,1741881040575,-500.0,0.00028408,18]
[356072794,1741881040584,-500.0,0.00028408,18]
[356072795,1741881040594,-644.63208686,0.00028408,18]
[356072796,1741881040604,-500.0,0.00028408,18]
[356072797,1741881040613,-500.0,0.00028408,18]
[356072798,1741881040623,-500.0,0.00028408,18]
[356072799,1741881040632,-500.0,0.00028408,18]
[356072800,1741881040641,-1146.37,0.00028408,18]
[356072801,1741881040652,-500.0,0.00028408,18]
[356072802,1741881040662,-500.0,0.00028408,18]
[356072803,1741881040671,-500.0,0.00028408,18]
[356072804,1741881040681,-500.0,0.00028408,18]
[356072805,1741881040691,-500.0,0.00028408,18]
[356072806,1741881040700,-500.0,0.00028408,18]
[356072807,1741881040709,-351.05256062,0.00028408,18]
[356072808,1741881040719,-500.0,0.00028408,18]
[356072809,1741881040728,-500.0,0.00028408,18]
[356072810,1741881040737,-552.51,0.00028408,18]
[356072811,1741881040747,-517.22456213,0.00028408,18]
[356072812,1741881040756,-500.0,0.00028408,18]
[356072813,1741881040766,-713.78,0.00028408,18]
[356072814,1741881040775,-500.0,0.00028408,18]
[356072815,1741881040784,-682.03,0.00028408,18]
[356072816,1741881040793,-500.0,0.00028408,18]
[356072817,1741881040803,-500.0,0.00028408,18]
[356072818,1741881040813,-500.0,0.00028408,18]
[356072819,1741881040823,-384.0047915,0.00028408,18]
[356072820,1741881040832,-512.28186114,0.00028408,18]
[356072821,1741881040842,-500.0,0.00028408,18]
[356072822,1741881040851,-500.0,0.00028408,18]
[356072823,1741881040860,-500.0,0.00028408,18]
[356072824,1741881040869,-637.03,0.00028408,18]
[356072825,1741881040879,-500.0,0.00028408,18]
[356072826,1741881040889,-500.0,0.00028408,18]
[356072827,1741881040900,-500.0,0.00028408,18]
[356072828,1741881040909,-500.0,0.00028408,18]
[356072829,1741881040919,-500.0,0.00028408,18]
[356072830,1741881040928,-500.0,0.00028408,18]
[356072831,1741881040937,-500.0,0.00028408,18]
[356072832,1741881040949,-500.0,0.00028408,18]
[356072833,1741881040961,-500.0,0.00028408,18]
[356072834,1741881040970,-500.0,0.00028408,18]
[356072835,1741881040980,-500.0,0.00028408,18]
[356072836,1741881040991,-500.0,0.00028408,18]
[356072837,1741881041001,-176.43164412,0.00028408,18]
[356072838,1741881041010,-500.0,0.00028408,18]
[356072839,1741881041020,-500.0,0.00028408,18]
[356072840,1741881041032,-500.0,0.00028408,18]
[356072841,1741881041042,-500.0,0.00028408,18]
[356072842,1741881041052,-500.0,0.00028408,18]
[356072843,1741881041062,-1190.45,0.00028408,18]
[356072844,1741881041071,-500.0,0.00028408,18]
[356072845,1741881041081,-500.0,0.00028408,18]
[356072846,1741881041091,-698.28,0.00028408,18]
[356072847,1741881041100,-500.0,0.00028408,18]
[356072848,1741881041110,-500.0,0.00028408,18]
[356072849,1741881041119,-500.0,0.00028408,18]
[356072850,1741881041128,-518.72,0.00028408,18]
[356072851,1741881041138,-500.0,0.00028408,18]
[356072852,1741881041149,-500.0,0.00028408,18]
[356072853,1741881041160,-934.07,0.00028408,18]
[356072854,1741881041169,-500.0,0.00028408,18]
[356072855,1741881041179,-500.0,0.00028408,18]
[356072856,1741881041188,-260.51334627,0.00028408,18]
[356072857,1741881041198,-500.0,0.00028408,18]
[356072858,1741881041207,-186.51093133,0.00028408,18]
[356072859,1741881041217,-500.0,0.00028408,18]
[356072860,1741881041227,-500.0,0.00028408,18]
[356072861,1741881041236,-742.69,0.00028408,18]
[356072862,1741881041246,-500.0,0.00028408,18]
[356072863,1741881041255,-500.0,0.00028408,18]
[356072864,1741881041265,-500.0,0.00028408,18]
[356072865,1741881041274,-500.0,0.00028408,18]
[356072866,1741881041284,-1229.55,0.00028408,18]
[356072867,1741881041293,-200.37505841,0.00028408,2]
[356072868,1741881041337,-207.0067627,0.00028408,2]
[356072869,1741881041347,-163.06689012,0.00028408,2]
[356072870,1741881041356,-500.0,0.00028408,2]
[356072871,1741881041366,-500.0,0.00028408,2]
[356072872,1741881041377,-500.0,0.00028408,2]
[356072873,1741881041387,-406.55431586,0.00028408,2]
[356072874,1741881041396,-500.0,0.00028408,2]
[356072875,1741881041405,-500.0,0.00028408,2]
[356072876,1741881041415,-500.0,0.00028408,2]
[356072877,1741881041424,-606.57895826,0.00028408,2]
[356072878,1741881041433,-500.0,0.00028408,2]
[356072879,1741881041442,-500.0,0.00028408,2]
[356072880,1741881041451,-500.0,0.00028408,2]
[356072881,1741881041460,-500.0,0.00028408,2]
[356072882,1741881041470,-374.60527079,0.00028408,2]
[356072883,1741881041480,-15097.4844642,0.00028408,3]
[356072884,1741881041489,-15131.5949155,0.00028409,3]
[356072885,1741881041499,-500.0,0.00028409,18]
[356072886,1741881041508,-410.8871339,0.00028409,18]
[356072887,1741881041517,-500.0,0.00028409,18]
[356072888,1741881041526,-500.0,0.00028409,18]
[356072889,1741881041535,-500.0,0.00028409,18]
[356072890,1741881041545,-500.0,0.00028409,18]
[356072891,1741881041554,-500.0,0.00028409,18]
[356072892,1741881041563,-500.0,0.00028409,18]
[356072893,1741881041572,-500.0,0.00028409,18]
[356072894,1741881041581,-201.21571611,0.00028409,18]
[356072895,1741881041591,-364.36713646,0.00028409,18]
[356072896,1741881041600,-639.92059065,0.00028409,18]
[356072897,1741881041609,-500.0,0.00028409,18]
[356072898,1741881041618,-500.0,0.00028409,18]
[356072899,1741881041627,-242.19551677,0.00028409,18]
[356072900,1741881041636,-500.0,0.00028409,18]
[356072901,1741881041646,-404.25467894,0.00028409,18]
[356072902,1741881041656,-500.0,0.00028409,18]
[356072903,1741881041665,-500.0,0.00028409,18]
[356072904,1741881041674,-500.0,0.00028409,18]
[356072905,1741881041683,-391.10992961,0.00028409,18]
[356072906,1741881041692,-288.13536839,0.00028409,18]
[356072907,1741881041701,-500.0,0.00028409,18]
[356072908,1741881041710,-500.0,0.00028409,18]
[356072909,1741881041719,-500.0,0.00028409,18]
[356072910,1741881041729,-500.0,0.00028409,18]
[356072911,1741881041738,-500.0,0.00028409,18]
[356072912,1741881041747,-500.0,0.00028409,18]
[356072913,1741881041756,-500.0,0.00028409,18]
[356072914,1741881041766,-214.58645558,0.00028409,18]
[356072915,1741881041775,-500.0,0.00028409,18]
[356072916,1741881041784,-500.0,0.00028409,18]
[356072917,1741881041793,-500.0,0.00028409,18]
[356072918,1741881041803,-500.0,0.00028409,18]
[356072919,1741881041812,-500.0,0.00028409,18]
[356072920,1741881041821,-500.0,0.00028409,18]
[356072921,1741881041831,-500.0,0.00028409,18]
[356072922,1741881041841,-500.0,0.00028409,18]
[356072923,1741881041850,-500.0,0.00028409,18]
[356072924,1741881041859,-500.0,0.00028409,18]
[356072925,1741881041869,-500.0,0.00028409,18]
[356072926,1741881041878,-500.0,0.00028409,18]
[356072927,1741881041887,-500.0,0.00028409,18]
[356072928,1741881041898,-500.0,0.00028409,18]
[356072929,1741881041907,-500.0,0.00028409,18]
[356072930,1741881041916,-500.0,0.00028409,18]
[356072931,1741881041926,-500.0,0.00028409,18]
[356072932,1741881041936,-440.96725874,0.00028409,18]
[356072933,1741881041946,-500.0,0.00028409,18]
[356072934,1741881041959,-500.0,0.00028409,18]
[356072935,1741881041968,-500.0,0.00028409,18]
[356072936,1741881041978,-500.0,0.00028409,18]
[356072937,1741881041989,-500.0,0.00028409,18]
[356072938,1741881041999,-500.0,0.00028409,18]
[356072939,1741881042008,-500.0,0.00028409,18]
[356072940,1741881042018,-500.0,0.00028409,18]
[356072941,1741881042027,-500.0,0.00028409,18]
[356072942,1741881042039,-500.0,0.00028409,18]